fUSD/lending_fUSD_20260523
["ID","MTS","AMOUNT","RATE_DAILY","PERIOD"]
[422819919,1779465610000,3584.0,0.00028,120]
[422819931,1779465798000,-151.26,8.839e-05,2]
[422819933,1779466105000,1113.19385396,0.00010757,3]
[422819934,1779466134000,151.25653759,8.839e-05,7]
[422819935,1779466143000,1000.0,0.00028078,120]
[422819938,1779466147000,-400.87291212,8.839e-05,2]
[422819937,1779466147000,-250.0,8.839e-05,2]
[422819936,1779466147000,-481.41908788,8.839e-05,2]
[422819939,1779466156000,200.0,5e-05,120]
[422819940,1779466157000,200.0,5e-05,120]
[422819941,1779466158000,200.0,5e-05,120]
[422819942,1779466159000,200.0,5e-05,120]
[422819943,1779466161000,200.0,1.8e-06,2]
[422819944,1779466162000,200.0,1.8e-06,2]
[422819945,1779466203000,-243.8731119,8.839e-05,2]
[422819978,1779466233000,-789.06326573,0.00010018,2]
[422819971,1779466233000,-4845.0,9.958e-05,2]
[422819973,1779466233000,-1007.26627534,9.978e-05,2]
[422819972,1779466233000,-12590.73372466,9.978e-05,2]
[422819975,1779466233000,-150.0,0.00010017,2]
[422819977,1779466233000,-1996.40845993,0.00010018,2]
[422819976,1779466233000,-3691.27737825,0.00010018,2]
[422819979,1779466233000,-3572.63095317,0.00010018,2]
[422819995,1779466233000,-1000.0,0.00010319,2]
[422819981,1779466233000,-3165.77995502,0.00010018,2]
[422819980,1779466233000,-6727.8399879,0.00010018,2]
[422819985,1779466233000,-380.0,0.00010156,2]
[422819983,1779466233000,-494.33,0.0001003,2]
[422819984,1779466233000,-200.23059143,0.00010056,2]
[422819974,1779466233000,-343.0,9.998e-05,2]
[422819994,1779466233000,-151.26,0.0001027,2]
[422819988,1779466233000,-7687.0,0.00010177,2]
[422819982,1779466233000,-158.46,0.00010027,2]
[422819968,1779466233000,-981.27743549,9.913e-05,2]
[422819965,1779466233000,-151.26,9.793e-05,2]
[422819970,1779466233000,-160.4227,9.957e-05,2]
[422819951,1779466233000,-245.85578337,9.1e-05,2]
[422819950,1779466233000,-187.0,9.014e-05,2]
[422819954,1779466233000,-268.13,9.452e-05,2]
[422819952,1779466233000,-859.2,9.228e-05,2]
[422819953,1779466233000,-151.26,9.316e-05,2]
[422819955,1779466233000,-4369.82706833,9.579e-05,2]
[422819957,1779466233000,-2000.0,9.702e-05,2]
[422819959,1779466233000,-300.0,9.722e-05,2]
[422819960,1779466233000,-347.0,9.722e-05,2]
[422819958,1779466233000,-300.0,9.721e-05,2]
[422819963,1779466233000,-164.81804905,9.723e-05,2]
[422819961,1779466233000,-250.0,9.723e-05,2]
[422819962,1779466233000,-500.0,9.723e-05,2]
[422819986,1779466233000,-3220.0,0.00010156,2]
[422819964,1779466233000,-250.0,9.723e-05,2]
[422819966,1779466233000,-821.0,9.852e-05,2]
[422819969,1779466233000,-277.0,9.957e-05,2]
[422819967,1779466233000,-3702.44256451,9.913e-05,2]
[422819987,1779466233000,-279.0,0.00010177,2]
[422819956,1779466233000,-200.23059144,9.579e-05,2]
[422819990,1779466233000,-221.38,0.00010212,2]
[422820033,1779466233000,-500.0,0.00010757,2]
[422820022,1779466233000,-500.0,0.00010757,2]
[422820026,1779466233000,-500.0,0.00010757,2]
[422820027,1779466233000,-500.0,0.00010757,2]
[422820038,1779466233000,-500.0,0.00010757,2]
[422820039,1779466233000,-500.0,0.00010757,2]
[422819989,1779466233000,-2524.0,0.00010197,2]
[422820043,1779466233000,-500.0,0.00010757,2]
[422820031,1779466233000,-300.92391772,0.00010757,2]
[422820042,1779466233000,-500.0,0.00010757,2]
[422820050,1779466233000,-191.61461681,0.00010757,2]
[422820046,1779466233000,-500.0,0.00010757,2]
[422820051,1779466233000,-138732.80163169,0.00010758,2]
[422820045,1779466233000,-500.0,0.00010757,2]
[422820047,1779466233000,-500.0,0.00010757,2]
[422820049,1779466233000,-500.0,0.00010757,2]
[422820048,1779466233000,-500.0,0.00010757,2]
[422820052,1779466233000,-33447.33798936,0.00010758,2]
[422820044,1779466233000,-500.0,0.00010757,2]
[422820036,1779466233000,-500.0,0.00010757,2]
[422820041,1779466233000,-500.0,0.00010757,2]
[422820024,1779466233000,-500.0,0.00010757,2]
[422820029,1779466233000,-500.0,0.00010757,2]
[422819993,1779466233000,-10663.0,0.00010237,2]
[422819992,1779466233000,-5372.0,0.00010217,2]
[422819996,1779466233000,-158.46,0.00010362,2]
[422819997,1779466233000,-691.92,0.00010432,2]
[422819998,1779466233000,-166.66,0.00010458,2]
[422820007,1779466233000,-273.73516688,0.00010757,2]
[422820011,1779466233000,-264.42943661,0.00010757,2]
[422820001,1779466233000,-151.26,0.00010747,2]
[422819991,1779466233000,-389.0,0.00010214,2]
[422820000,1779466233000,-158.46,0.00010696,2]
[422819999,1779466233000,-1822.6948677,0.00010484,2]
[422820003,1779466233000,-500.0,0.00010757,2]
[422820015,1779466233000,-500.0,0.00010757,2]
[422820005,1779466233000,-192.77894759,0.00010757,2]
[422820013,1779466233000,-500.0,0.00010757,2]
[422820017,1779466233000,-152.88001111,0.00010757,2]
[422820019,1779466233000,-521.01079272,0.00010757,2]
[422820009,1779466233000,-500.0,0.00010757,2]
[422820059,1779466237000,-785.58635833,0.00010758,2]
[422820057,1779466237000,-721.63655,0.00010758,2]
[422820058,1779466237000,-2674.6178411,0.00010758,2]
[422820056,1779466237000,-538.715813,0.00010758,2]
[422820095,1779466238000,-2106.34898996,0.00010758,2]
[422820094,1779466238000,-1188.65558103,0.00010758,2]
[422820106,1779466240000,-384.02447264,0.00010758,2]
[422820105,1779466240000,-410.295,0.00010758,2]
[422820123,1779466243000,-321.44149803,0.00010758,2]
[422820122,1779466243000,-61743.32454566,0.00010758,2]
[422820131,1779466245000,-7609.82668128,0.00010758,2]
[422820132,1779466245000,-2499.9667,0.00010758,2]
[422820130,1779466245000,-506.0,0.00010758,2]
[422820129,1779466245000,-470.42998,0.00010758,2]
[422820127,1779466245000,-2047.54038931,0.00010758,2]
[422820128,1779466245000,-6612.26957459,0.00010758,2]
[422820133,1779466246000,-1534.43624876,0.00010758,2]
[422820138,1779466405000,156.6,5.394e-05,2]
[422820137,1779466405000,156.6,5.134e-05,2]
[422820140,1779466405000,156.6,5.913e-05,2]
[422820139,1779466405000,156.6,5.654e-05,2]
[422820141,1779466405000,156.6,6.173e-05,2]
[422820145,1779466406000,156.6,7.211e-05,2]
[422820144,1779466406000,156.6,6.952e-05,2]
[422820143,1779466406000,156.6,6.692e-05,2]
[422820142,1779466406000,156.6,6.432e-05,2]
[422820149,1779466407000,156.6,8.25e-05,2]
[422820148,1779466407000,156.6,7.99e-05,2]
[422820147,1779466407000,156.6,7.73e-05,2]
[422820146,1779466407000,156.6,7.471e-05,2]
[422820152,1779466729000,442.2,0.00028,120]
[422820153,1779466749000,152.0,0.00011774,7]
[422820154,1779467065000,-156.6,8.509e-05,2]
[422820155,1779467080000,-500.0,8.639e-05,2]
[422820156,1779467139000,-156.6,8.769e-05,2]
[422820157,1779467139000,-200.0,8.95e-05,2]
[422820158,1779467139000,-111.03454262,8.958e-05,2]
[422820160,1779467211000,-290.30655544,8.977e-05,2]
[422820159,1779467211000,-41.29545738,8.958e-05,2]
[422820164,1779467325000,154.19,5.721e-05,2]
[422820163,1779467325000,154.19,5.43e-05,2]
[422820162,1779467325000,154.19,5.139e-05,2]
[422820161,1779467325000,154.19,4.848e-05,2]
[422820169,1779467326000,154.19,7.176e-05,2]
[422820168,1779467326000,154.19,6.885e-05,2]
[422820167,1779467326000,154.19,6.594e-05,2]
[422820166,1779467326000,154.19,6.303e-05,2]
[422820165,1779467326000,154.19,6.012e-05,2]
[422820170,1779467327000,154.19,7.468e-05,2]
[422820171,1779467327000,154.19,7.759e-05,2]
[422820173,1779467327000,154.19,8.341e-05,2]
[422820174,1779467327000,154.19,8.632e-05,2]
[422820172,1779467327000,154.19,8.05e-05,2]
[422820175,1779467341000,1000.0,0.00028077,120]
[422820176,1779467362000,-154.19,8.923e-05,2]
[422820178,1779467362000,-455.34,9.004e-05,2]
[422820180,1779467362000,-220.37,9.187e-05,2]
[422820179,1779467362000,-1869.78,9.054e-05,2]
[422820177,1779467362000,-500.51344456,8.977e-05,2]
[422820184,1779467362000,-300.0,9.231e-05,2]
[422820185,1779467362000,-300.0,9.231e-05,2]
[422820183,1779467362000,-279.61,9.224e-05,2]
[422820181,1779467362000,-2000.0,9.197e-05,2]
[422820182,1779467362000,-154.19,9.214e-05,2]
[422820188,1779467362000,-11366.0,9.251e-05,2]
[422820189,1779467362000,-5048.0,9.286e-05,2]
[422820191,1779467362000,-808.58,9.355e-05,2]
[422820190,1779467362000,-3100.06860149,9.32e-05,2]
[422820187,1779467362000,-7874.0,9.232e-05,2]
[422820192,1779467362000,-12500.0,9.363e-05,2]
[422820193,1779467362000,-150.0,9.369e-05,2]
[422820194,1779467362000,-7354.61208766,9.37e-05,2]
[422820186,1779467362000,-1200.0,9.231e-05,2]
[422820210,1779467431000,-1897.11,9.492e-05,2]
[422820206,1779467431000,-160.0,9.394e-05,2]
[422820205,1779467431000,-8989.0,9.388e-05,2]
[422820204,1779467431000,-17334.56399536,9.381e-05,2]
[422820200,1779467431000,-1030.38791234,9.37e-05,2]
[422820203,1779467431000,-24.43600464,9.381e-05,2]
[422820201,1779467431000,-255.0,9.38e-05,2]
[422820211,1779467431000,-508.14,9.502e-05,2]
[422820207,1779467431000,-2003.0,9.407e-05,2]
[422820215,1779467431000,-474.12,9.522e-05,2]
[422820202,1779467431000,-1200.0,9.38e-05,2]
[422820213,1779467431000,-154.19,9.505e-05,2]
[422820221,1779467431000,-545.47,9.539e-05,2]
[422820219,1779467431000,-7906.38,9.524e-05,2]
[422820223,1779467431000,-333.51,9.546e-05,2]
[422820224,1779467431000,-500.0,9.875e-05,2]
[422820227,1779467431000,-327.41,0.00010101,2]
[422820228,1779467431000,-20509.34,0.00010171,2]
[422820226,1779467431000,-170.68,0.00010089,2]
[422820225,1779467431000,-872.78,0.00010027,2]
[422820229,1779467431000,-872.78,0.00010278,2]
[422820217,1779467431000,-150.0,9.523e-05,2]
[422820263,1779467432000,-500.0,0.00011474,2]
[422820264,1779467432000,-9874.72807406,0.00011496,2]
[422820266,1779467432000,-433.0,0.00011523,2]
[422820265,1779467432000,-2000.0,0.00011497,2]
[422820255,1779467432000,-250.0,0.00011325,2]
[422820260,1779467432000,-215.27762834,0.00011458,2]
[422820261,1779467432000,-500.0,0.00011474,2]
[422820257,1779467432000,-327.41,0.00011364,2]
[422820267,1779467432000,-152.0,0.00011545,3]
[422820262,1779467432000,-500.0,0.00011474,2]
[422820269,1779467432000,-170.68,0.00011754,2]
[422820274,1779467432000,-150.19796051,0.00012,2]
[422820268,1779467432000,-224.0,0.00011562,2]
[422820271,1779467432000,-333.51,0.00011933,2]
[422820273,1779467432000,-74088.78,0.00011975,2]
[422820259,1779467432000,-208.7374384,0.00011458,2]
[422820272,1779467432000,-152.33,0.00011944,2]
[422820278,1779467432000,-152.0,0.00012446,4]
[422820275,1779467432000,-458.0,0.00012329,2]
[422820277,1779467432000,-9874.72807406,0.00012347,2]
[422820276,1779467432000,-276.2,0.00012329,2]
[422820279,1779467432000,-1965.0,0.00012485,2]
[422820281,1779467432000,-151.0,0.00012539,2]
[422820270,1779467432000,-9874.72807406,0.00011921,2]
[422820258,1779467432000,-477.76,0.0001137,2]
[422820250,1779467432000,-872.78,0.0001103,2]
[422820251,1779467432000,-1989.08302799,0.00011045,2]
[422820231,1779467432000,-2000.0,0.00010347,2]
[422820230,1779467432000,-1680.0,0.00010318,2]
[422820233,1779467432000,-2430.9635472,0.00010438,2]
[422820232,1779467432000,-179.47252941,0.00010432,2]
[422820237,1779467432000,-7643.48399444,0.00010484,2]
[422820234,1779467432000,-274.567466,0.00010438,2]
[422820236,1779467432000,-255.0,0.00010475,2]
[422820235,1779467432000,-152.33,0.00010451,2]
[422820239,1779467432000,-872.78,0.00010529,2]
[422820240,1779467432000,-500.0,0.00010685,2]
[422820238,1779467432000,-3683.67923764,0.00010484,2]
[422820242,1779467432000,-333.51,0.0001074,2]
[422820244,1779467432000,-200.0,0.00010758,2]
[422820241,1779467432000,-179.47252941,0.00010688,2]
[422820246,1779467432000,-200.0,0.00010866,2]
[422820243,1779467432000,-151.0,0.00010755,2]
[422820245,1779467432000,-872.78,0.00010779,2]
[422820248,1779467432000,-150.0,0.00010959,2]
[422820252,1779467432000,-9874.72807414,0.00011099,2]
[422820254,1779467432000,-316.78172289,0.00011119,2]
[422820282,1779467432000,-3251.0,0.00012542,2]
[422820247,1779467432000,-304.68199548,0.00010919,2]
[422820253,1779467432000,-163.51453309,0.00011119,2]
[422820256,1779467432000,-2351.0,0.0001135,2]
[422820280,1779467432000,-2019.14959,0.00012502,2]
[422820249,1779467432000,-200.0,0.00010974,2]
[422820283,1779467432000,-790.82,0.00012568,2]
[422820313,1779467432000,-150.0,0.00013488,2]
[422820316,1779467432000,-150.32786046,0.00013488,2]
[422820315,1779467432000,-150.0,0.00013488,2]
[422820314,1779467432000,-150.0,0.00013488,2]
[422820317,1779467432000,-150.1045633,0.00013488,2]
[422820319,1779467432000,-150.0,0.00013488,2]
[422820322,1779467432000,-150.0,0.00013488,2]
[422820318,1779467432000,-150.0,0.00013488,2]
[422820320,1779467432000,-150.35471604,0.00013488,2]
[422820321,1779467432000,-150.0,0.00013488,2]
[422820323,1779467432000,-150.0,0.00013488,2]
[422820312,1779467432000,-152.33,0.00013437,2]
[422820327,1779467432000,-150.0,0.00013584,2]
[422820328,1779467432000,-5000.0,0.00013599,2]
[422820326,1779467432000,-150.0,0.00013536,2]
[422820329,1779467432000,-2539.95679135,0.00013619,2]
[422820333,1779467432000,-327.43753459,0.00013654,2]
[422820331,1779467432000,-8930.43290575,0.00013623,2]
[422820332,1779467432000,-150.0,0.00013633,2]
[422820330,1779467432000,-944.29516831,0.00013623,2]
[422820336,1779467432000,-322.21968653,0.00013654,2]
[422820334,1779467432000,-1158.45634641,0.00013654,2]
[422820335,1779467432000,-500.0,0.00011974,2]
[422820284,1779467432000,-327.41,0.00012626,2]
[422820325,1779467432000,-655.0,0.00013522,5]
[422820311,1779467432000,-7980.69654037,0.00013405,2]
[422820324,1779467432000,-150.0,0.00013488,2]
[422820309,1779467432000,-165.0,0.000134,2]
[422820285,1779467432000,-2000.0,0.00012646,2]
[422820287,1779467432000,-2539.95679137,0.00012658,2]
[422820289,1779467432000,-2611.54733789,0.00012757,2]
[422820288,1779467432000,-71477.23266211,0.00012757,2]
[422820290,1779467432000,-2240.13,0.00012757,2]
[422820292,1779467432000,-5830.17007389,0.00012772,2]
[422820291,1779467432000,-4044.55800017,0.00012772,2]
[422820293,1779467432000,-7980.69654037,0.00012907,2]
[422820296,1779467432000,-200.0,0.00013,2]
[422820307,1779467432000,-2315.0,0.000134,2]
[422820295,1779467432000,-4633.0,0.00012989,2]
[422820294,1779467432000,-2539.95679135,0.00012978,2]
[422820286,1779467432000,-7980.69654046,0.00012658,2]
[422820299,1779467432000,-1713.64025537,0.00013156,2]
[422820310,1779467432000,-2315.0,0.000134,2]
[422820308,1779467432000,-1588.0,0.000134,2]
[422820298,1779467432000,-333.51,0.00013126,2]
[422820306,1779467432000,-174.554394,0.00013391,2]
[422820304,1779467432000,-2539.95679135,0.00013299,2]
[422820305,1779467432000,-152.0,0.00013347,5]
[422820303,1779467432000,-2196.82035628,0.00013198,2]
[422820301,1779467432000,-7200.12740431,0.00013198,2]
[422820297,1779467432000,-300.88903238,0.00013,2]
[422820300,1779467432000,-6267.056285,0.00013156,2]
[422820302,1779467432000,-477.78031347,0.00013198,2]
[422820340,1779467433000,-1494.48683306,0.00013654,2]
[422820339,1779467433000,-1647.88643247,0.00013654,2]
[422820338,1779467433000,-87.5104353,0.00011974,2]
[422820337,1779467433000,-390.37,0.00011974,2]
[422820354,1779467437000,-158.39086144,0.00013654,2]
[422820356,1779467437000,-466.92,0.00013654,2]
[422820355,1779467437000,-974.03742887,0.00013654,2]
[422820357,1779467438000,-304.0,0.00013654,2]
[422820360,1779467439000,-891.9241332,0.00013654,2]
[422820359,1779467439000,-384.79,0.00013654,2]
[422820382,1779467440000,-150.0,0.00013737,2]
[422820381,1779467440000,-150.0,0.00013737,2]
[422820378,1779467440000,-150.0,0.00013702,2]
[422820379,1779467440000,-2315.0,0.0001372,2]
[422820376,1779467440000,-166.66,0.00013699,2]
[422820377,1779467440000,-756.93,0.00013699,2]
[422820380,1779467440000,-150.0,0.00013729,2]
[422820375,1779467440000,-200.0,0.00013699,2]
[422820371,1779467440000,-657.0,0.00013698,5]
[422820373,1779467440000,-9999.99,0.00013699,2]
[422820372,1779467440000,-299.99,0.00013699,2]
[422820370,1779467440000,-500.0,0.00013698,2]
[422820369,1779467440000,-500.0,0.00013698,2]
[422820368,1779467440000,-446.2,0.00013698,2]
[422820367,1779467440000,-500.0,0.00013698,2]
[422820366,1779467440000,-150.0,0.00013681,2]
[422820365,1779467440000,-3634.0,0.00013664,2]
[422820364,1779467440000,-6059.0,0.00013664,2]
[422820386,1779467440000,-166.66,0.00013836,2]
[422820362,1779467440000,-3464.53814524,0.00013654,2]
[422820363,1779467440000,-1224.0,0.00013664,2]
[422820361,1779467440000,-2375.2400352,0.00011314,2]
[422820374,1779467440000,-9999.99,0.00013699,2]
[422820383,1779467440000,-150.0,0.00013778,2]
[422820411,1779467440000,-247.88177252,0.00014,2]
[422820384,1779467440000,-2000.0,0.00013796,2]
[422820407,1779467440000,-150.0,0.00013987,2]
[422820385,1779467440000,-150.0,0.00013826,2]
[422820410,1779467440000,-2645.0,0.00013989,2]
[422820406,1779467440000,-166.66,0.00013973,2]
[422820408,1779467440000,-150.0,0.00013987,2]
[422820405,1779467440000,-150.0,0.00013971,2]
[422820401,1779467440000,-150.0,0.00013941,2]
[422820402,1779467440000,-150.0,0.00013941,2]
[422820404,1779467440000,-150.0,0.00013941,2]
[422820403,1779467440000,-150.0,0.00013941,2]
[422820400,1779467440000,-150.0,0.00013941,2]
[422820409,1779467440000,-150.0,0.00013987,2]
[422820399,1779467440000,-150.0,0.00013941,2]
[422820387,1779467440000,-373.0,0.0001384,5]
[422820388,1779467440000,-150.0,0.00013862,2]
[422820398,1779467440000,-150.0,0.00013941,2]
[422820389,1779467440000,-150.0,0.00013874,2]
[422820391,1779467440000,-7980.69654037,0.00013904,2]
[422820392,1779467440000,-150.0,0.00013916,2]
[422820394,1779467440000,-2539.95679135,0.00013939,2]
[422820393,1779467440000,-150.0,0.00013923,2]
[422820396,1779467440000,-200.0,0.00013941,2]
[422820397,1779467440000,-200.0,0.00013941,2]
[422820390,1779467440000,-327.41,0.00013889,2]
[422820423,1779467443000,-327.365286,0.00010484,2]
[422820428,1779467446000,-150.0,0.00013244,2]
[422820427,1779467446000,-99.42946442,0.00010484,2]
[422820429,1779467446000,-153.80500007,0.00013683,2]
[422820430,1779467446000,-773.19499993,0.00013683,2]
[422820432,1779467446000,-2.11822748,0.00014,2]
[422820433,1779467446000,-150.0,0.00014019,2]
[422820434,1779467446000,-5420.45437865,0.00014049,2]
[422820435,1779467446000,-454.96614358,0.00014049,2]
[422820431,1779467446000,-170.4,0.00013824,2]
[422820442,1779467789000,-640.39948087,0.00011662,2]
[422820446,1779468094000,5813025.63072392,0.00028,120]
[422820447,1779468108000,152.0,0.00010316,7]
[422820453,1779468334000,-139.60741806,0.0001,2]
[422820452,1779468334000,-569.98256451,0.0001,2]
[422820450,1779468334000,-150.0,9.7e-05,2]
[422820451,1779468334000,-209.0454864,0.0001,2]
[422820454,1779468352000,152.0,0.00010318,7]
[422820455,1779468495000,1883.116,0.0002,120]
[422820456,1779468500000,156.22,6.071e-05,2]
[422820457,1779468500000,156.22,6.378e-05,2]
[422820460,1779468500000,156.22,7.299e-05,2]
[422820459,1779468500000,156.22,6.992e-05,2]
[422820458,1779468500000,156.22,6.685e-05,2]
[422820464,1779468501000,156.22,8.527e-05,2]
[422820463,1779468501000,156.22,8.22e-05,2]
[422820462,1779468501000,156.22,7.913e-05,2]
[422820461,1779468501000,156.22,7.606e-05,2]
[422820465,1779468631000,-156.22,8.834e-05,2]
[422820466,1779468631000,-156.22,9.141e-05,2]
[422820467,1779468631000,-150.0,9.231e-05,2]
[422820468,1779468631000,-277.0,9.323e-05,2]
[422820471,1779468631000,-217.62873799,0.0001,2]
[422820478,1779468631000,-156.22,0.00011596,2]
[422820474,1779468631000,-156.22,0.00010675,2]
[422820469,1779468631000,-156.22,9.448e-05,2]
[422820477,1779468631000,-156.22,0.00011289,2]
[422820473,1779468631000,-156.22,0.00010368,2]
[422820470,1779468631000,-156.22,9.754e-05,2]
[422820475,1779468631000,-156.22,0.00010982,2]
[422820476,1779468631000,-725.600649,0.00011232,2]
[422820480,1779468631000,-1699.2,0.00011701,2]
[422820481,1779468631000,-182.4458,0.00011721,2]
[422820479,1779468631000,-250.0,0.00011672,2]
[422820483,1779468631000,-300.0,0.0001182,2]
[422820484,1779468631000,-16673.2367,0.00011821,2]
[422820482,1779468631000,-1200.0,0.0001182,2]
[422820472,1779468631000,-156.22,0.00010061,2]
[422820526,1779468632000,-150.0,0.00012588,2]
[422820524,1779468632000,-500.0,0.00012545,2]
[422820534,1779468632000,-150.0,0.00012762,2]
[422820532,1779468632000,-150.0,0.00012714,2]
[422820533,1779468632000,-150.0,0.00012727,2]
[422820515,1779468632000,-150.0,0.00012545,2]
[422820521,1779468632000,-150.0,0.00012545,2]
[422820512,1779468632000,-150.0,0.00012449,2]
[422820511,1779468632000,-150.0,0.00012414,2]
[422820513,1779468632000,-150.0,0.00012484,2]
[422820525,1779468632000,-150.0,0.00012553,2]
[422820535,1779468632000,-150.0,0.00012787,2]
[422820531,1779468632000,-150.0,0.00012692,2]
[422820539,1779468632000,-150.0,0.00012866,2]
[422820530,1779468632000,-640.86,0.00012667,2]
[422820529,1779468632000,-150.0,0.00012658,2]
[422820527,1779468632000,-150.0,0.00012593,2]
[422820537,1779468632000,-150.0,0.00012827,2]
[422820547,1779468632000,-420.0,0.00012978,2]
[422820548,1779468632000,-150.0,0.0001298,2]
[422820536,1779468632000,-150.0,0.00012797,2]
[422820538,1779468632000,-150.0,0.00012831,2]
[422820544,1779468632000,-150.0,0.00012901,2]
[422820546,1779468632000,-150.0,0.0001297,2]
[422820543,1779468632000,-150.0,0.00012884,2]
[422820514,1779468632000,-150.0,0.00012518,2]
[422820528,1779468632000,-150.0,0.00012623,2]
[422820507,1779468632000,-150.0,0.00012345,2]
[422820495,1779468632000,-150.0,0.00012205,2]
[422820508,1779468632000,-150.0,0.00012375,2]
[422820491,1779468632000,-208.7374384,0.00011972,2]
[422820490,1779468632000,-160.0,0.00011971,2]
[422820487,1779468632000,-2000.0,0.00011903,2]
[422820485,1779468632000,-2000.0,0.00011821,2]
[422820486,1779468632000,-642.46,0.000119,2]
[422820488,1779468632000,-156.22,0.00011903,2]
[422820489,1779468632000,-215.27762834,0.00011971,2]
[422820493,1779468632000,-354.68854093,0.00012173,2]
[422820492,1779468632000,-150.0,0.00012098,2]
[422820504,1779468632000,-150.0,0.00012275,2]
[422820503,1779468632000,-163.7,0.00012267,2]
[422820494,1779468632000,-150.0,0.00012205,2]
[422820496,1779468632000,-150.0,0.00012205,2]
[422820540,1779468632000,-150.0,0.00012884,2]
[422820497,1779468632000,-150.0,0.00012205,2]
[422820498,1779468632000,-150.0,0.00012205,2]
[422820500,1779468632000,-150.0,0.00012205,2]
[422820502,1779468632000,-150.0,0.0001224,2]
[422820499,1779468632000,-150.0,0.00012205,2]
[422820501,1779468632000,-150.0,0.00012205,2]
[422820506,1779468632000,-150.0,0.0001231,2]
[422820517,1779468632000,-150.0,0.00012545,2]
[422820505,1779468632000,-500.0,0.00012301,2]
[422820519,1779468632000,-150.0,0.00012545,2]
[422820510,1779468632000,-150.0,0.00012399,2]
[422820509,1779468632000,-150.0,0.00012379,2]
[422820541,1779468632000,-150.0,0.00012884,2]
[422820542,1779468632000,-150.0,0.00012884,2]
[422820599,1779468632000,-117044.94246582,0.00013562,2]
[422820587,1779468632000,-467.74669975,0.00013542,2]
[422820578,1779468632000,-73660.76112648,0.00013461,2]
[422820582,1779468632000,-168.73235429,0.00013462,2]
[422820579,1779468632000,-19098.71475602,0.00013461,2]
[422820581,1779468632000,-2500.0,0.00013462,2]
[422820580,1779468632000,-6401.8390175,0.00013461,2]
[422820585,1779468632000,-150.0,0.00013492,2]
[422820586,1779468632000,-150.0,0.00013527,2]
[422820584,1779468632000,-1703.87286322,0.00013462,2]
[422820589,1779468632000,-417.13114333,0.00013561,2]
[422820545,1779468632000,-150.0,0.00012936,2]
[422820591,1779468632000,-874.0,0.00013562,5]
[422820577,1779468632000,-6805.7175,0.00013461,2]
[422820592,1779468632000,-150.0,0.00013562,2]
[422820590,1779468632000,-300.0,0.00013561,2]
[422820593,1779468632000,-154.27161389,0.00013562,2]
[422820595,1779468632000,-153.47973256,0.00013562,2]
[422820594,1779468632000,-708.0,0.00013562,5]
[422820597,1779468632000,-153.60079131,0.00013562,2]
[422820596,1779468632000,-155.157559,0.00013562,2]
[422820598,1779468632000,-150.0,0.00013562,2]
[422820600,1779468632000,-145588.38360097,0.00013562,2]
[422820601,1779468632000,-1254.41808677,0.00013562,2]
[422820602,1779468632000,-1982.90913914,0.00013562,2]
[422820603,1779468632000,-16264.23000236,0.00013562,2]
[422820604,1779468632000,-1378.17418521,0.00013562,2]
[422820588,1779468632000,-300.0,0.00013561,2]
[422820576,1779468632000,-150.0,0.00013457,2]
[422820583,1779468632000,-3192.27861622,0.00013462,2]
[422820570,1779468632000,-150.0,0.00013353,2]
[422820549,1779468632000,-1680.0,0.00013002,2]
[422820551,1779468632000,-150.0,0.0001304,2]
[422820569,1779468632000,-150.0,0.00013318,2]